Workbook

Sheet Hoja1
D1: Probabilidades según la ley de Benford | K1: Diferencias entre los resultados previstos y los obtenidos
C2: Número | D2: 1er. dígito | E2: 2º dígito | F2: 3er. dígito | G2: 4º dígito | H2: 5º dígito | J2: Número | K2: 1er. dígito | L2: 2º dígito | M2: 3er. dígito | N2: 4º dígito | O2: 5º dígito
A3: =GenerarNúmero(5) -> 99672 | C3: 0 | E3: 0.1196792686 | F3: 0.1017843646 | G3: 0.1001761469 | H3: 0.1000175915 | J3: 0 | L3: =E3-SUM(--(1*MID($A$3:$A$10002,2,1)=$J3))/10000 -> -0.001620731403 | M3: =F3-SUM(--(1*MID($A$3:$A$10002,3,1)=$J3))/10000 -> 0.0002843646442 | N3: =G3-SUM(--(1*MID($A$3:$A$10002,4,1)=$J3))/10000 -> -0.00132385306 | O3: =H3-SUM(--(1*RIGHT($A$3:$A$10002)=$J3))/10000 -> -0.001582408494
A4: =GenerarNúmero(5) -> 12154 | C4: 1 | D4: 0.3010299957 | E4: 0.1138901034 | F4: 0.1013759774 | G4: 0.1001368881 | H4: 0.1000136811 | J4: 1 | K4: =D4-SUM(--(1*LEFT($A$3:$A$10002)=$J4))/10000 -> 0.003329995664 | L4: =E4-SUM(--(1*MID($A$3:$A$10002,2,1)=$J4))/10000 -> 0.004490103408 | M4: =F4-SUM(--(1*MID($A$3:$A$10002,3,1)=$J4))/10000 -> -0.0006240225522 | N4: =G4-SUM(--(1*MID($A$3:$A$10002,4,1)=$J4))/10000 -> -0.003263111882 | O4: =H4-SUM(--(1*RIGHT($A$3:$A$10002)=$J4))/10000 -> 0.004113681135
A5: 42713 | C5: 2 | D5: 0.1760912591 | E5: 0.108821499 | F5: 0.1009721981 | G5: 0.1000976726 | H5: 0.1000097712 | J5: 2 | K5: =D5-SUM(--(1*LEFT($A$3:$A$10002)=$J5))/10000 -> -0.003608740944 | L5: =E5-SUM(--(1*MID($A$3:$A$10002,2,1)=$J5))/10000 -> 0.0004214990055 | M5: =F5-SUM(--(1*MID($A$3:$A$10002,3,1)=$J5))/10000 -> -0.001627801863 | N5: =G5-SUM(--(1*MID($A$3:$A$10002,4,1)=$J5))/10000 -> -0.0005023274054 | O5: =H5-SUM(--(1*RIGHT($A$3:$A$10002)=$J5))/10000 -> 0.002109771195
A6: 72765 | C6: 3 | D6: 0.1249387366 | E6: 0.1043295602 | F6: 0.1005729321 | G6: 0.1000585003 | H6: 0.1000058617 | J6: 3 | K6: =D6-SUM(--(1*LEFT($A$3:$A$10002)=$J6))/10000 -> 0.001238736608 | L6: =E6-SUM(--(1*MID($A$3:$A$10002,2,1)=$J6))/10000 -> -0.001970439769 | M6: =F6-SUM(--(1*MID($A$3:$A$10002,3,1)=$J6))/10000 -> -0.003127067889 | N6: =G6-SUM(--(1*MID($A$3:$A$10002,4,1)=$J6))/10000 -> -0.001041499717 | O6: =H6-SUM(--(1*RIGHT($A$3:$A$10002)=$J6))/10000 -> 0.0001058616852
A7: 15795 | C7: 4 | D7: 0.09691001301 | E7: 0.1003082023 | F7: 0.1001780876 | G7: 0.1000193711 | H7: 0.1000019526 | J7: 4 | K7: =D7-SUM(--(1*LEFT($A$3:$A$10002)=$J7))/10000 -> 0.001710013008 | L7: =E7-SUM(--(1*MID($A$3:$A$10002,2,1)=$J7))/10000 -> -0.001591797732 | M7: =F7-SUM(--(1*MID($A$3:$A$10002,3,1)=$J7))/10000 -> 0.002678087628 | N7: =G7-SUM(--(1*MID($A$3:$A$10002,4,1)=$J7))/10000 -> 0.003019371097 | O7: =H7-SUM(--(1*RIGHT($A$3:$A$10002)=$J7))/10000 -> -0.005598047395
A8: 60385 | C8: 5 | D8: 0.07918124605 | E8: 0.0966772358 | F8: 0.09978757569 | G8: 0.09998028495 | H8: 0.09999804396 | J8: 5 | K8: =D8-SUM(--(1*LEFT($A$3:$A$10002)=$J8))/10000 -> -0.0003187539524 | L8: =E8-SUM(--(1*MID($A$3:$A$10002,2,1)=$J8))/10000 -> 0.001577235802 | M8: =F8-SUM(--(1*MID($A$3:$A$10002,3,1)=$J8))/10000 -> 0.0007875756922 | N8: =G8-SUM(--(1*MID($A$3:$A$10002,4,1)=$J8))/10000 -> -0.003919715052 | O8: =H8-SUM(--(1*RIGHT($A$3:$A$10002)=$J8))/10000 -> 0.0002980439552
A9: 10922 | C9: 6 | D9: 0.06694678963 | E9: 0.09337473578 | F9: 0.09940130994 | G9: 0.09994124175 | H9: 0.09999413574 | J9: 6 | K9: =D9-SUM(--(1*LEFT($A$3:$A$10002)=$J9))/10000 -> -0.0009532103694 | L9: =E9-SUM(--(1*MID($A$3:$A$10002,2,1)=$J9))/10000 -> -0.001325264217 | M9: =F9-SUM(--(1*MID($A$3:$A$10002,3,1)=$J9))/10000 -> -0.001098690055 | N9: =G9-SUM(--(1*MID($A$3:$A$10002,4,1)=$J9))/10000 -> -0.0003587582505 | O9: =H9-SUM(--(1*RIGHT($A$3:$A$10002)=$J9))/10000 -> -0.0006058642649
A10: 51167 | C10: 7 | D10: 0.05799194698 | E10: 0.09035198927 | F10: 0.09901920656 | G10: 0.09990224142 | H10: 0.09999022794 | J10: 7 | K10: =D10-SUM(--(1*LEFT($A$3:$A$10002)=$J10))/10000 -> 0.0005919469777 | L10: =E10-SUM(--(1*MID($A$3:$A$10002,2,1)=$J10))/10000 -> 0.00225198927 | M10: =F10-SUM(--(1*MID($A$3:$A$10002,3,1)=$J10))/10000 -> 0.001219206562 | N10: =G10-SUM(--(1*MID($A$3:$A$10002,4,1)=$J10))/10000 -> -0.0003977585846 | O10: =H10-SUM(--(1*RIGHT($A$3:$A$10002)=$J10))/10000 -> 0.001690227945
A11: 14119 | C11: 8 | D11: 0.05115252245 | E11: 0.08757005358 | F11: 0.09864118415 | G11: 0.09986328386 | H11: 0.09998632058 | J11: 8 | K11: =D11-SUM(--(1*LEFT($A$3:$A$10002)=$J11))/10000 -> -4.747755262e-05 | L11: =E11-SUM(--(1*MID($A$3:$A$10002,2,1)=$J11))/10000 -> -0.002329946421 | M11: =F11-SUM(--(1*MID($A$3:$A$10002,3,1)=$J11))/10000 -> 4.118415478e-05 | N11: =G11-SUM(--(1*MID($A$3:$A$10002,4,1)=$J11))/10000 -> 0.006663283859 | O11: =H11-SUM(--(1*RIGHT($A$3:$A$10002)=$J11))/10000 -> 0.0006863205844
A12: 26897 | C12: 9 | D12: 0.04575749056 | E12: 0.08499735206 | F12: 0.09826716368 | G12: 0.099824369 | H12: 0.09998241365 | J12: 9 | K12: =D12-SUM(--(1*LEFT($A$3:$A$10002)=$J12))/10000 -> -0.001942509439 | L12: =E12-SUM(--(1*MID($A$3:$A$10002,2,1)=$J12))/10000 -> 9.735205769e-05 | M12: =F12-SUM(--(1*MID($A$3:$A$10002,3,1)=$J12))/10000 -> 0.001467163678 | N12: =G12-SUM(--(1*MID($A$3:$A$10002,4,1)=$J12))/10000 -> 0.001124368995 | O12: =H12-SUM(--(1*RIGHT($A$3:$A$10002)=$J12))/10000 -> -0.001217586347
A13: 43566
A14: 25556
A15: 74935
A16: 11391
A17: 61156 | E17: Página de la que este libro es el ejemplo
A18: 14554
A19: 10421
A20: 81074
A21: 62847
A22: 28447
A23: 22144
A24: 43611
A25: 24808
A26: 47059
A27: 83583
A28: 30383
A29: 22334
A30: 34859
A31: 75788
A32: 48980
A33: 19172
A34: 26880
A35: 65162
A36: 33906
A37: 82332
A38: 51207
A39: 13378
A40: 45563
A41: 52854
A42: 36944
A43: 53813
A44: 65649
A45: 15425
A46: 31075
A47: 14069
A48: 86580
A49: 53418
A50: 46449
A51: 25229
A52: 13828
A53: 28030
A54: 26966
A55: 36020
A56: 38829
A57: 20164
A58: 12147
A59: 11032
A60: 51138
A61: 22659
A62: 20390
A63: 44556
A64: 25409
A65: 21214
A66: 88975
A67: 98608
A68: =GenerarNúmero(5) -> 95071
A69: 27113
A70: 11051
A71: 21394
A72: 53304
A73: 34036
A74: 21352
A75: 53676
A76: 10726
A77: 14317
A78: 81819
A79: 14554
A80: 14221
A81: 89997
A82: 23827
A83: 94694
A84: 67903
A85: 36255
A86: 57910
A87: 84076
A88: 49260
A89: 68982
A90: 86355
A91: 71266
A92: 35212
A93: 33178
A94: 71144
A95: 28647
A96: 33810
A97: 17813
A98: 53483
A99: 49188
A100: 26935
A101: 59740
A102: 20509
A103: 85631
A104: 31523
A105: 23959
A106: 62547
A107: 72958
A108: 51508
A109: 46279
A110: 60360
A111: 40252
A112: 60439
A113: 61159
A114: 95902
A115: 63824
A116: 16888
A117: 22247
A118: 73461
A119: 32386
A120: 23788
A121: 14248
A122: 51430
A123: 25908
A124: 46167
A125: 63304
A126: 19683
A127: 34871
A128: 28038
A129: 36402
A130: 17261
A131: 32824
A132: =GenerarNúmero(5) -> 48707
A133: 11378
A134: 18021
A135: 40113
A136: 26911
A137: 15881
A138: 27622
A139: 33434
A140: 80353
A141: 12168
A142: 98889
A143: 26113
A144: 47927
A145: 54015
A146: 49786
A147: 11043
A148: 16228
A149: 11430
A150: 40869
A151: 33926
A152: 18855
A153: 27734
A154: 12504
A155: 10172
A156: 14808
A157: 52627
A158: 66094
A159: 13206
A160: 12435
A161: 15021
A162: 78335
A163: 53745
A164: 95141
A165: 31635
A166: 15751
A167: 78896
A168: 10018
A169: 45713
A170: 58496
A171: 12342
A172: 90194
A173: 35721
A174: 95229
A175: 36244
A176: 21024
A177: 46348
A178: 11861
A179: 64787
A180: 37070
A181: 97323
A182: 68311
A183: 68972
A184: 93271
A185: 13023
A186: 46689
A187: 52965
A188: 15680
A189: 41142
A190: 84815
A191: 33077
A192: 87623
A193: 21628
A194: 23410
A195: 18760
A196: =GenerarNúmero(5) -> 17003
A197: 53154
A198: 23270
A199: 16702
A200: 85226
... 9802 more rows
